fUSD/lending_fUSD_20250120
["ID","MTS","AMOUNT","RATE_DAILY","PERIOD"]
[349703316,1737384648287,-500.0,0.00020271,2]
[349703317,1737384648296,-1100.35,0.00020271,2]
[349703318,1737384648306,-1191.4,0.00020271,2]
[349703319,1737384648316,-500.0,0.00020271,2]
[349703320,1737384648325,-500.0,0.00020271,2]
[349703321,1737384648335,-500.0,0.00020271,2]
[349703322,1737384648345,-500.0,0.00020271,2]
[349703323,1737384648355,-508.97,0.00020271,2]
[349703324,1737384648365,-765.11,0.00020271,2]
[349703325,1737384648374,-500.0,0.00020271,2]
[349703326,1737384648384,-500.0,0.00020271,2]
[349703327,1737384648394,-500.0,0.00020271,2]
[349703328,1737384648405,-653.73,0.00020271,2]
[349703329,1737384648414,-617.55,0.00020271,2]
[349703330,1737384648424,-500.0,0.00020271,2]
[349703331,1737384648434,-623.09,0.00020271,2]
[349703332,1737384648444,-500.0,0.00020271,2]
[349703333,1737384648454,-500.0,0.00020271,2]
[349703334,1737384648463,-500.0,0.00020271,2]
[349703335,1737384648474,-1358.58,0.00020271,2]
[349703336,1737384648484,-500.0,0.00020271,2]
[349703337,1737384648494,-563.94,0.00020271,2]
[349703338,1737384648504,-712.86,0.00020271,2]
[349703339,1737384648513,-500.0,0.00020271,2]
[349703340,1737384648523,-500.0,0.00020271,2]
[349703341,1737384648532,-500.0,0.00020271,2]
[349703342,1737384648542,-962.27,0.00020271,2]
[349703343,1737384648551,-524.88,0.00020271,2]
[349703344,1737384648561,-2338.81,0.00020271,2]
[349703345,1737384648570,-500.0,0.00020271,2]
[349703346,1737384648580,-572.39,0.00020271,2]
[349703347,1737384648590,-500.0,0.00020271,2]
[349703348,1737384648600,-500.0,0.00020271,2]
[349703349,1737384648610,-500.0,0.00020271,2]
[349703350,1737384648619,-508.97,0.00020271,2]
[349703351,1737384648630,-500.0,0.00020271,2]
[349703352,1737384648639,-500.0,0.00020271,2]
[349703353,1737384648649,-500.0,0.00020271,2]
[349703354,1737384648659,-1367.55,0.00020271,2]
[349703355,1737384648670,-500.0,0.00020271,2]
[349703356,1737384648680,-500.0,0.00020271,2]
[349703357,1737384648690,-500.0,0.00020271,2]
[349703358,1737384648700,-500.0,0.00020271,2]
[349703359,1737384648711,-786.59,0.00020271,2]
[349703360,1737384648721,-500.0,0.00020271,2]
[349703361,1737384648732,-500.0,0.00020271,2]
[349703362,1737384648743,-500.0,0.00020271,2]
[349703363,1737384648754,-1421.25,0.00020271,2]
[349703364,1737384648764,-2069.89,0.00020271,2]
[349703365,1737384648773,-500.0,0.00020271,2]
[349703366,1737384648783,-1368.82,0.00020271,2]
[349703367,1737384648792,-966.73,0.00020271,2]
[349703368,1737384648803,-898.92,0.00020271,2]
[349703369,1737384648812,-500.0,0.00020271,2]
[349703370,1737384648822,-500.0,0.00020271,2]
[349703371,1737384648833,-500.0,0.00020271,2]
[349703372,1737384648843,-727.33,0.00020271,2]
[349703373,1737384648853,-500.0,0.00020271,2]
[349703374,1737384648862,-171.68853169,0.00020271,2]
[349703375,1737384648872,-500.0,0.00020271,2]
[349703376,1737384648882,-500.0,0.00020271,2]
[349703377,1737384648892,-674.49,0.00020271,2]
[349703378,1737384648902,-232.04,0.00020271,2]
[349703379,1737384648913,-500.0,0.00020271,2]
[349703380,1737384648922,-1504.67,0.00020271,2]
[349703381,1737384648932,-660.06,0.00020271,2]
[349703382,1737384648942,-500.0,0.00020272,2]
[349703383,1737384648952,-500.0,0.00020272,2]
[349703384,1737384648962,-500.0,0.00020272,2]
[349703385,1737384648971,-777.93,0.00020272,2]
[349703386,1737384648981,-500.0,0.00020272,2]
[349703387,1737384648991,-500.0,0.00020272,2]
[349703388,1737384649001,-500.0,0.00020272,2]
[349703389,1737384649011,-536.54,0.00020272,2]
[349703390,1737384649021,-500.0,0.00020272,2]
[349703391,1737384649032,-500.0,0.00020272,2]
[349703392,1737384649042,-500.0,0.00020272,2]
[349703393,1737384649052,-500.0,0.00020272,2]
[349703394,1737384649062,-500.0,0.00020272,2]
[349703395,1737384649072,-500.0,0.00020272,2]
[349703396,1737384649082,-500.0,0.00020272,2]
[349703397,1737384649093,-500.0,0.00020272,2]
[349703398,1737384649103,-491.64321263,0.00020272,2]
[349703399,1737384649114,-500.0,0.00020272,2]
[349703400,1737384649124,-500.0,0.00020272,2]
[349703401,1737384649134,-500.0,0.00020272,2]
[349703402,1737384649144,-500.0,0.00020272,2]
[349703403,1737384649157,-500.0,0.00020272,2]
[349703404,1737384649177,-500.0,0.00020272,2]
[349703405,1737384649189,-500.0,0.00020272,2]
[349703406,1737384649201,-500.0,0.00020272,2]
[349703407,1737384649212,-500.0,0.00020272,2]
[349703408,1737384649224,-500.0,0.00020272,2]
[349703409,1737384649234,-500.0,0.00020272,2]
[349703410,1737384649245,-500.0,0.00020272,2]
[349703411,1737384649255,-500.0,0.00020272,2]
[349703412,1737384649267,-569.03,0.00020272,2]
[349703413,1737384649277,-500.0,0.00020272,2]
[349703414,1737384649287,-500.0,0.00020272,2]
[349703415,1737384649297,-500.0,0.00020272,2]
[349703416,1737384649307,-500.0,0.00020272,2]
[349703417,1737384649316,-500.0,0.00020272,2]
[349703418,1737384649326,-500.0,0.00020272,2]
[349703419,1737384649339,-500.0,0.00020272,2]
[349703420,1737384649355,-524.75,0.00020272,2]
[349703421,1737384649368,-500.0,0.00020272,2]
[349703422,1737384649381,-161.74885737,0.00020272,2]
[349703423,1737384649401,-453.02114263,0.00020272,2]
[349703424,1737384649413,-500.0,0.00020272,2]
[349703425,1737384649426,-500.0,0.00020272,2]
[349703426,1737384649436,-500.0,0.00020272,2]
[349703427,1737384649446,-608.3,0.00020272,2]
[349703428,1737384649456,-705.88,0.00020272,2]
[349703429,1737384649466,-626.24,0.00020272,2]
[349703430,1737384649476,-500.0,0.00020272,2]
[349703431,1737384649490,-500.0,0.00020272,2]
[349703432,1737384649500,-611.62,0.00020272,2]
[349703433,1737384649510,-500.0,0.00020272,2]
[349703434,1737384649520,-500.0,0.00020272,2]
[349703435,1737384649530,-500.0,0.00020272,2]
[349703436,1737384649540,-500.0,0.00020272,2]
[349703437,1737384649550,-500.0,0.00020272,2]
[349703438,1737384649560,-500.0,0.00020272,2]
[349703439,1737384649570,-500.0,0.00020272,2]
[349703440,1737384649580,-500.0,0.00020272,2]
[349703441,1737384649590,-500.0,0.00020272,2]
[349703442,1737384649600,-500.0,0.00020272,2]
[349703443,1737384649611,-500.0,0.00020272,2]
[349703444,1737384649620,-500.0,0.00020272,2]
[349703445,1737384649630,-500.0,0.00020272,2]
[349703446,1737384649640,-500.0,0.00020272,2]
[349703447,1737384649650,-500.0,0.00020344,2]
[349703448,1737384649662,-508.88354469,0.00020344,2]
[349703449,1737384649672,-1000.0,0.00020344,2]
[349703450,1737384649682,-1170.1,0.00020344,2]
[349703451,1737384649691,-500.0,0.00020344,2]
[349703452,1737384649702,-1422.1,0.00020344,2]
[349703453,1737384649714,-1385.27,0.00020344,2]
[349703454,1737384649724,-500.0,0.00020344,2]
[349703455,1737384649733,-500.0,0.00020356,2]
[349703456,1737384649744,-500.0,0.00020356,2]
[349703457,1737384649753,-390.47275799,0.00020363,2]
[349703458,1737384649763,-603.31966422,0.00020383,2]
[349703459,1737384649773,-152.0,0.00020489,3]
[349703460,1737384649783,-500.0,0.00020544,2]
[349703461,1737384649793,-500.0,0.00020544,2]
[349703462,1737384649802,-500.0,0.00020545,2]
[349703463,1737384649812,-500.0,0.00020545,2]
[349703464,1737384649821,-500.0,0.00020545,2]
[349703465,1737384649830,-500.0,0.00020545,2]
[349703466,1737384649840,-500.0,0.00020545,2]
[349703467,1737384649850,-500.0,0.00020545,2]
[349703468,1737384649859,-500.0,0.00020545,2]
[349703469,1737384649869,-500.0,0.00020545,2]
[349703470,1737384649878,-500.0,0.00020545,2]
[349703471,1737384649887,-500.0,0.00020545,2]
[349703472,1737384649897,-620.87,0.00020545,2]
[349703473,1737384649907,-500.0,0.00020545,2]
[349703474,1737384649917,-673.06,0.00020545,2]
[349703475,1737384649927,-500.0,0.00020545,2]
[349703476,1737384649936,-786.21,0.00020545,2]
[349703477,1737384649946,-500.0,0.00020545,2]
[349703478,1737384649955,-598.11,0.00020545,2]
[349703479,1737384649964,-690.4,0.00020545,2]
[349703480,1737384649974,-500.0,0.00020545,2]
[349703481,1737384649983,-308.735476,0.00020545,2]
[349703482,1737384649993,-295.23187849,0.00020545,2]
[349703483,1737384650003,-520.29,0.00020545,2]
[349703484,1737384650012,-1128.88,0.00020545,2]
[349703485,1737384650022,-500.0,0.00020545,2]
[349703486,1737384650031,-500.0,0.00020545,2]
[349703487,1737384650041,-500.0,0.00020545,2]
[349703488,1737384650050,-500.0,0.00020545,2]
[349703489,1737384650060,-502.03,0.00020545,2]
[349703490,1737384650069,-500.0,0.00020545,2]
[349703491,1737384650079,-500.0,0.00020545,2]
[349703492,1737384650088,-500.0,0.00020545,2]
[349703493,1737384650098,-500.0,0.00020545,2]
[349703494,1737384650107,-164.698125,0.00020545,2]
[349703495,1737384650117,-500.0,0.00020545,2]
[349703496,1737384650127,-1099.48,0.00020545,2]
[349703497,1737384650137,-1498.67,0.00020545,2]
[349703498,1737384650147,-648.0,0.00020545,2]
[349703499,1737384650156,-971.36,0.00020545,2]
[349703500,1737384650166,-1100.35,0.00020545,2]
[349703501,1737384650177,-1191.4,0.00020545,2]
[349703502,1737384650188,-500.0,0.00020545,2]
[349703503,1737384650198,-500.0,0.00020545,2]
[349703504,1737384650209,-500.0,0.00020545,2]
[349703505,1737384650219,-500.0,0.00020545,2]
[349703506,1737384650228,-508.97,0.00020545,2]
[349703507,1737384650238,-765.11,0.00020545,2]
[349703508,1737384650247,-500.0,0.00020545,2]
[349703509,1737384650260,-500.0,0.00020545,2]
[349703510,1737384650271,-653.73,0.00020545,2]
[349703511,1737384650281,-617.55,0.00020545,2]
[349703512,1737384650290,-500.0,0.00020545,2]
[349703513,1737384650300,-623.09,0.00020545,2]
[349703514,1737384650310,-500.0,0.00020545,2]
[349703515,1737384650319,-500.0,0.00020545,2]
[349703516,1737384650330,-500.0,0.00020545,2]
[349703517,1737384650341,-1358.58,0.00020545,2]
[349703518,1737384650351,-500.0,0.00020545,2]
[349703519,1737384650361,-563.94,0.00020545,2]
[349703520,1737384650372,-712.86,0.00020545,2]
[349703521,1737384650381,-500.0,0.00020545,2]
[349703522,1737384650391,-500.0,0.00020545,2]
[349703523,1737384650402,-500.0,0.00020545,2]
[349703524,1737384650413,-962.27,0.00020545,2]
[349703525,1737384650423,-524.88,0.00020545,2]
[349703526,1737384650433,-2338.81,0.00020545,2]
[349703527,1737384650443,-500.0,0.00020545,2]
[349703528,1737384650453,-500.0,0.00020545,2]
[349703529,1737384650464,-508.97,0.00020545,2]
[349703530,1737384650473,-500.0,0.00020545,2]
[349703531,1737384650483,-500.0,0.00020545,2]
[349703532,1737384650493,-1367.55,0.00020545,2]
[349703533,1737384650503,-500.0,0.00020545,2]
[349703534,1737384650513,-500.0,0.00020545,2]
[349703535,1737384650523,-500.0,0.00020545,2]
[349703536,1737384650534,-500.0,0.00020545,2]
[349703537,1737384650544,-786.59,0.00020545,2]
[349703538,1737384650727,-500.0,0.00020545,2]
[349703539,1737384650741,-500.0,0.00020545,2]
[349703540,1737384650752,-1421.25,0.00020545,2]
[349703541,1737384650762,-2069.89,0.00020545,2]
[349703542,1737384650771,-500.0,0.00020545,2]
[349703543,1737384650782,-1368.82,0.00020545,2]
[349703544,1737384650791,-966.73,0.00020545,2]
[349703545,1737384650800,-898.92,0.00020545,2]
[349703546,1737384650809,-500.0,0.00020545,2]
[349703547,1737384650819,-500.0,0.00020545,2]
[349703548,1737384650828,-500.0,0.00020545,2]
[349703549,1737384650838,-727.33,0.00020545,2]
[349703550,1737384650847,-500.0,0.00020545,2]
[349703551,1737384650857,-500.0,0.00020545,2]
[349703552,1737384650866,-500.0,0.00020545,2]
[349703553,1737384650876,-674.49,0.00020545,2]
[349703554,1737384650885,-500.0,0.00020545,2]
[349703555,1737384650895,-1504.67,0.00020545,2]
[349703556,1737384650904,-660.06,0.00020545,2]
[349703557,1737384650914,-500.0,0.00020546,2]
[349703558,1737384650924,-500.0,0.00020546,2]
[349703559,1737384650933,-388.91695615,0.00020546,2]
[349703560,1737384651071,-111.08304385,0.00020546,2]
[349703561,1737384651081,-777.93,0.00020546,2]
[349703562,1737384651091,-500.0,0.00020546,2]
[349703563,1737384651099,-500.0,0.00020546,2]
[349703564,1737384651109,-500.0,0.00020546,2]
[349703565,1737384651118,-500.0,0.00020546,2]
[349703566,1737384651127,-500.0,0.00020546,2]
[349703567,1737384651137,-500.0,0.00020546,2]
[349703568,1737384651146,-500.0,0.00020546,2]
[349703569,1737384651157,-481.54739953,0.00020546,2]
[349703570,1737384651184,-18.45260047,0.00020546,2]
[349703571,1737384651193,-500.0,0.00020546,2]
[349703572,1737384651203,-500.0,0.00020546,2]
[349703573,1737384651212,-500.0,0.00020546,2]
[349703574,1737384651222,-500.0,0.00020546,2]
[349703575,1737384651231,-500.0,0.00020546,2]
[349703576,1737384651240,-500.0,0.00020546,2]
[349703577,1737384651250,-599.09006711,0.00020546,2]
[349703578,1737384651260,-500.0,0.00020546,2]
[349703579,1737384651270,-500.0,0.00020546,2]
[349703580,1737384651279,-500.0,0.00020546,2]
[349703581,1737384651289,-500.0,0.00020546,2]
[349703582,1737384651298,-500.0,0.00020546,2]
[349703583,1737384651307,-500.0,0.00020546,2]
[349703584,1737384651317,-569.03,0.00020546,2]
[349703585,1737384651326,-500.0,0.00020546,2]
[349703586,1737384651335,-500.0,0.00020546,2]
[349703587,1737384651344,-500.0,0.00020546,2]
[349703588,1737384651353,-500.0,0.00020546,2]
[349703589,1737384651362,-500.0,0.00020546,2]
[349703590,1737384651372,-500.0,0.00020546,2]
[349703591,1737384651381,-524.75,0.00020546,2]
[349703592,1737384651391,-500.0,0.00020546,2]
[349703593,1737384651400,-614.77,0.00020546,2]
[349703594,1737384651411,-500.0,0.00020546,2]
[349703595,1737384651421,-705.88,0.00020546,2]
[349703596,1737384651430,-626.24,0.00020546,2]
[349703597,1737384651439,-500.0,0.00020546,2]
[349703598,1737384651448,-500.0,0.00020546,2]
[349703599,1737384651459,-611.62,0.00020546,2]
[349703600,1737384651468,-500.0,0.00020546,2]
[349703601,1737384651478,-500.0,0.00020546,2]
[349703602,1737384651487,-326.42779242,0.00020546,2]
[349703603,1737384767096,150.0,0.00015,7]
[349703604,1737384773067,150.0,0.00015,10]
[349703605,1737384778312,200.0,0.00015,20]
[349703606,1737384939627,550.0,0.00015,2]
[349703608,1737385572121,168.67,0.00010137,2]
[349703617,1737385832076,-168.67,0.00016813,2]
[349703618,1737385832086,-150.41679766,0.000169,2]
[349703619,1737385832095,-85.83581666,0.0001722,2]
[349703620,1737385832129,-460.67418334,0.0001722,2]
[349703621,1737385832138,-1885.84,0.00017853,2]
[349703622,1737385832148,-200.0,0.00017853,2]
[349703623,1737385832159,-500.0,0.00018164,2]
[349703624,1737385832168,-500.0,0.00018164,2]
[349703625,1737385832177,-1830.02015026,0.00018392,2]
[349703626,1737385832193,-2816.62937134,0.00018392,2]
[349703627,1737385832204,-1679.5104784,0.00018392,2]
[349703628,1737385832213,-973.14,0.00018462,2]
[349703629,1737385832223,-250.0,0.00018533,2]
[349703630,1737385832232,-258.46,0.0001858,2]
[349703631,1737385832242,-364.43,0.00018584,30]
[349703632,1737385832251,-178.86,0.0001862,2]
[349703633,1737385832261,-1208.33,0.0001862,2]
[349703634,1737385832270,-1000.0,0.00018678,2]
[349703635,1737385832280,-180.15,0.00018729,2]
[349703636,1737385832290,-587.54,0.00018806,2]
[349703637,1737385832299,-137.18387316,0.00018866,2]
[349703638,1737385832310,-12.81612684,0.00018866,2]
[349703639,1737385832319,-374.39,0.00018903,2]
[349703640,1737385832328,-1585.96,0.00018903,2]
[349703641,1737385832338,-1629.72,0.00018903,2]
[349703642,1737385832348,-212.13,0.00019041,2]
[349703643,1737385832362,-988.51865321,0.0001916,2]
[349703644,1737385832372,-717.08,0.00019193,2]
[349703645,1737385832382,-500.0,0.0001926,2]
[349703646,1737385832391,-7225.0372585,0.00019265,2]
[349703647,1737385832406,-342.527592,0.00019265,2]
[349703648,1737385832417,-720.52065708,0.00019265,2]
[349703649,1737385832428,-4767.4,0.00019265,2]
[349703650,1737385832439,-4517.21755419,0.00019265,2]
[349703651,1737385832454,-1666.75681614,0.00019265,2]
[349703652,1737385832465,-3102.95012209,0.00019265,2]
[349703653,1737385832474,-546.51,0.00019484,2]
[349703654,1737385832484,-1500.0,0.00019507,2]
[349703655,1737385832493,-590.075,0.00019543,2]
[349703656,1737385832503,-250.0,0.00019543,2]
[349703657,1737385832513,-764.43611241,0.00019572,2]
[349703658,1737385832524,-1021.20076979,0.00019572,2]
[349703659,1737385832539,-18376.1831178,0.00019572,2]
[349703660,1737385832548,-19609.6699,0.00019624,2]
[349703661,1737385832558,-175.34183171,0.00019724,2]
[349703662,1737385832568,-2306.52584792,0.00019897,2]
[349703663,1737385832584,-1305.49139509,0.00019897,2]
[349703664,1737385832595,-1259.99999995,0.00019897,2]
[349703665,1737385832608,-2457.13782208,0.00019897,2]
[349703666,1737385832621,-20977.93489466,0.00019897,2]
[349703667,1737385832635,-1675.12018,0.00019897,2]
[349704062,1737385838006,-743.81441589,0.00019897,2]
[349704063,1737385838183,-2608.14332056,0.00019897,2]
[349704064,1737385838195,-573.45,0.00019897,2]
[349704065,1737385838384,-21477.13807311,0.00019897,2]
[349704066,1737385838399,-500.0,0.00019897,2]
[349704067,1737385838412,-10024.48032,0.00019897,2]
[349704068,1737385838443,-244.51663074,0.00019897,2]
[349704069,1737385838453,-212.13,0.00019993,2]
[349704070,1737385838463,-500.0,0.00019996,2]
[349704071,1737385838473,-533.19,0.00019996,2]
[349704072,1737385838483,-500.0,0.00019996,2]
[349704073,1737385838493,-500.0,0.00019996,2]
[349704075,1737385838503,-500.0,0.00019996,2]
[349704095,1737385838709,-500.0,0.00019996,2]
[349704097,1737385838719,-500.0,0.00019996,2]
[349704099,1737385838728,-500.0,0.00019996,2]
[349704101,1737385838738,-500.0,0.00019996,2]
[349704103,1737385838747,-500.0,0.00019996,2]
[349704105,1737385838756,-500.0,0.00019996,2]
[349704107,1737385838766,-500.0,0.00019996,2]
[349704109,1737385838775,-500.0,0.00019996,2]
[349704111,1737385838784,-500.0,0.00019996,2]
[349704113,1737385838793,-500.0,0.00019996,2]
[349704115,1737385838803,-500.0,0.00019996,2]
[349704117,1737385838812,-500.0,0.00019996,2]
[349704119,1737385838822,-500.0,0.00019996,2]
[349704121,1737385838831,-500.0,0.00019996,2]
[349704123,1737385838840,-500.0,0.00019996,2]
[349704125,1737385838849,-298.68649831,0.00019996,2]
[349704127,1737385838858,-500.0,0.00019996,2]
[349704129,1737385838868,-500.0,0.00019996,2]
[349704131,1737385838877,-500.0,0.00019996,2]
[349704133,1737385838890,-500.0,0.00019996,2]
[349704135,1737385838899,-500.0,0.00019996,2]
[349704137,1737385838909,-500.0,0.00019996,2]
[349704139,1737385838918,-647.49,0.00019996,2]
[349704141,1737385838927,-500.0,0.00019996,2]
[349704143,1737385838937,-500.0,0.00019996,2]
[349704145,1737385838946,-502.56004954,0.00019996,2]
[349704147,1737385838955,-500.0,0.00019996,2]
[349704149,1737385838964,-500.0,0.00019996,2]
[349704151,1737385838973,-500.0,0.00019996,2]
[349704153,1737385838982,-500.0,0.00019996,2]
[349704155,1737385838991,-500.0,0.00019996,2]
[349704157,1737385839000,-500.0,0.00019996,2]
[349704159,1737385839009,-500.0,0.00019996,2]
[349704161,1737385839018,-500.0,0.00019996,2]
[349704163,1737385839027,-588.23,0.00019996,2]
[349704165,1737385839036,-289.40880911,0.00019996,2]
[349704306,1737385840315,-210.59119089,0.00019996,2]
[349704308,1737385840328,-500.0,0.00019996,2]
[349704309,1737385840339,-500.0,0.00019996,2]
[349704312,1737385840352,-133.13880301,0.00019996,2]
[349704314,1737385840367,-366.86119699,0.00019996,2]
[349704315,1737385840379,-500.0,0.00019996,2]
[349704317,1737385840391,-500.0,0.00019996,2]
[349704319,1737385840404,-512.0981695,0.00019996,2]
[349704321,1737385840416,-431.48808665,0.00019996,2]
[349704324,1737385840429,-68.51191335,0.00019996,2]
[349704326,1737385840441,-214.15294467,0.00019996,2]
[349704328,1737385840457,-287.23902292,0.00019996,2]
[349704330,1737385840468,-500.0,0.00019996,2]
[349704332,1737385840477,-500.0,0.00019996,2]
[349704334,1737385840486,-500.0,0.00019996,2]
[349704336,1737385840495,-500.0,0.00019996,2]
[349704338,1737385840505,-500.0,0.00019996,2]
[349704340,1737385840514,-500.0,0.00019997,2]
[349704342,1737385840523,-500.0,0.00019997,2]
[349704344,1737385840533,-500.0,0.00019997,2]
[349704346,1737385840545,-500.0,0.00019997,2]
[349704348,1737385840554,-500.0,0.00019997,2]
[349704350,1737385840563,-521.42763089,0.00019997,2]
[349704352,1737385840573,-500.0,0.00019997,2]
[349704354,1737385840585,-648.59741008,0.00019997,2]
[349704356,1737385840594,-500.0,0.00019997,2]
[349704358,1737385840604,-148.19616111,0.00019997,2]
[349704360,1737385840615,-351.80383889,0.00019997,2]
[349704362,1737385840625,-500.0,0.00019997,2]
[349704364,1737385840634,-500.0,0.00019997,2]
[349704366,1737385840645,-437.22531561,0.00019997,2]
[349704368,1737385840657,-62.77468439,0.00019997,2]
[349704370,1737385840667,-500.0,0.00019997,2]
[349704372,1737385840676,-500.0,0.00019997,2]
[349704374,1737385840685,-500.0,0.00019997,2]
[349704376,1737385840695,-500.0,0.00019997,2]
[349704378,1737385840704,-486.55938907,0.00019997,2]
[349704380,1737385840714,-500.0,0.00019997,2]
[349704382,1737385840723,-500.0,0.00019997,2]
[349704384,1737385840732,-469.75720616,0.00019997,2]
[349704386,1737385840743,-30.24279384,0.00019997,2]
[349704388,1737385840752,-285.35720616,0.00019997,2]
[349704392,1737385840780,-214.64279384,0.00019997,2]
[349704394,1737385840789,-500.0,0.00019997,2]
[349704396,1737385840799,-500.0,0.00019997,2]
[349704398,1737385840808,-146.42150393,0.00019997,2]
[349704400,1737385840819,-353.57849607,0.00019997,2]
[349704402,1737385840834,-500.0,0.00019997,2]
[349704404,1737385840844,-500.0,0.00019997,2]
[349704406,1737385840853,-484.32508303,0.00019997,2]
[349704412,1737385840902,-15.67491697,0.00019997,2]
[349704414,1737385840912,-500.0,0.00019997,2]
[349704416,1737385840922,-500.0,0.00019997,2]
[349704418,1737385840931,-500.0,0.00019997,2]
[349704420,1737385840940,-361.70742218,0.00019997,2]
[349704424,1737385840967,-138.29257782,0.00019997,2]
[349704426,1737385840976,-1175.0,0.00020152,2]
[349704428,1737385840985,-150.0,0.00020152,2]
[349704430,1737385840994,-3898.0,0.00020152,2]
[349704432,1737385841004,-1105.0,0.00020152,2]
[349704434,1737385841014,-180.4,0.0002026,2]
[349704436,1737385841023,-500.0,0.00020268,2]
[349704438,1737385841032,-635.77,0.00020268,2]
[349704440,1737385841041,-500.0,0.00020268,2]
[349704442,1737385841050,-500.0,0.00020268,2]
[349704444,1737385841059,-822.25,0.00020268,2]
[349704446,1737385841068,-500.0,0.00020268,2]
[349704448,1737385841077,-500.0,0.00020268,2]
[349704450,1737385841087,-566.04,0.00020268,2]
[349704452,1737385841096,-500.0,0.00020268,2]
[349704454,1737385841105,-68.04939218,0.00020268,2]
[349704456,1737385841117,-431.95060782,0.00020268,2]
[349704458,1737385841127,-617.79,0.00020268,2]
[349704460,1737385841136,-747.15,0.00020268,2]
[349704462,1737385841150,-500.0,0.00020268,2]
[349704464,1737385841159,-500.0,0.00020268,2]
[349704466,1737385841168,-500.0,0.00020268,2]
[349704468,1737385841178,-544.09,0.00020268,2]
[349704471,1737385841187,-500.0,0.00020268,2]
[349704472,1737385841197,-500.0,0.00020268,2]
[349704475,1737385841207,-443.49525018,0.00020268,2]
[349704477,1737385841218,-56.50474982,0.00020268,2]
[349704479,1737385841228,-500.0,0.00020268,2]
[349704481,1737385841239,-91.87849172,0.00020268,2]
[349704665,1737385843086,-5386.5,0.0002017,2]
[349704678,1737385843209,-1616.1,0.0002017,2]
[349704680,1737385843221,-1211.8834673,0.0002017,2]
[349704684,1737385843244,-49065.7884327,0.0002017,2]
[349704686,1737385843254,-408.12150828,0.00020268,2]
[349704688,1737385843263,-500.0,0.00020268,2]
[349704690,1737385843273,-1429.33,0.00020268,2]
[349704692,1737385843283,-505.68,0.00020268,2]
[349704694,1737385843293,-500.0,0.00020268,2]
[349704695,1737385843303,-500.0,0.00020268,2]
[349704698,1737385843314,-500.0,0.00020268,2]
[349704700,1737385843326,-569.63,0.00020268,2]
[349704702,1737385843336,-1243.59,0.00020268,2]
[349704703,1737385843346,-500.0,0.00020268,2]
[349704705,1737385843357,-500.0,0.00020268,2]
[349704707,1737385843367,-500.0,0.00020269,2]
[349704709,1737385843378,-500.0,0.00020269,2]
[349704712,1737385843395,-500.0,0.00020269,2]
[349704714,1737385843406,-500.0,0.00020269,2]
[349704716,1737385843417,-500.0,0.00020269,2]
[349704718,1737385843429,-500.0,0.00020269,2]
[349704720,1737385843440,-671.07,0.00020269,2]
[349704722,1737385843451,-308.735476,0.00020269,2]
[349704724,1737385843462,-598.38,0.00020269,2]